[Event "*** Qualifier 3: Titled Tuesday 3|2 Blitz"]
[Site "Chess.com"]
[Date "2017.04.18"]
[Round "10"]
[White "Rating-Schmating"]
[Black "GamayevOleg"]
[Result "0-1"]
[WhiteElo "2293"]
[BlackElo "2398"]
[TimeControl "180+2"]
[EndTime "15:18:33 PDT"]
[Termination "GamayevOleg won by checkmate"]

1. e4 {[%clk 0:03:01.2]} 1... d6 {[%clk 0:03:01.9]} 2. d4 {[%clk 0:03:00.7]}
2... Nf6 {[%clk 0:03:02.8]} 3. Nc3 {[%clk 0:03:01.2]} 3... e5 {[%clk 0:03:04.2]}
4. dxe5 {[%clk 0:03:00.9]} 4... dxe5 {[%clk 0:03:04.4]} 5. Qxd8+ {[%clk
0:03:02.5]} 5... Kxd8 {[%clk 0:03:05.4]} 6. Nf3 {[%clk 0:03:02.9]} 6... Bd6
{[%clk 0:03:05.9]} 7. Bc4 {[%clk 0:03:00.2]} 7... Be6 {[%clk 0:03:06.8]} 8. Bb3
{[%clk 0:02:57.3]} 8... Nc6 {[%clk 0:03:06.5]} 9. Be3 {[%clk 0:02:57.2]} 9... a6
{[%clk 0:03:05.9]} 10. Ng5 {[%clk 0:02:56.5]} 10... Bxb3 {[%clk 0:02:57.9]} 11.
axb3 {[%clk 0:02:58.4]} 11... Ke7 {[%clk 0:02:58.4]} 12. O-O-O {[%clk 0:02:55]}
12... Nb4 {[%clk 0:02:50.8]} 13. Nd5+ {[%clk 0:02:47.4]} 13... Nbxd5 {[%clk
0:02:48.5]} 14. exd5 {[%clk 0:02:48]} 14... Nd7 {[%clk 0:02:44.7]} 15. Ne4
{[%clk 0:02:48.1]} 15... f5 {[%clk 0:02:43.7]} 16. Ng5 {[%clk 0:02:42.8]} 16...
Nf6 {[%clk 0:02:30.6]} 17. c4 {[%clk 0:02:40.4]} 17... b6 {[%clk 0:02:08.1]} 18.
Ne6 {[%clk 0:02:38.9]} 18... g6 {[%clk 0:02:05.8]} 19. Bg5 {[%clk 0:02:39.6]}
19... Kf7 {[%clk 0:02:06.2]} 20. Bxf6 {[%clk 0:02:40.7]} 20... Kxf6 {[%clk
0:02:07.5]} 21. Kc2 {[%clk 0:02:36.9]} 21... e4 {[%clk 0:01:59.8]} 22. f3 {[%clk
0:02:36.8]} 22... exf3 {[%clk 0:01:58.3]} 23. gxf3 {[%clk 0:02:37.9]} 23... Rhe8
{[%clk 0:01:58.3]} 24. Rde1 {[%clk 0:02:38.2]} 24... Re7 {[%clk 0:01:50.5]} 25.
Re2 {[%clk 0:02:37]} 25... Rae8 {[%clk 0:01:50]} 26. Rhe1 {[%clk 0:02:38]} 26...
c6 {[%clk 0:01:40.6]} 27. Kd3 {[%clk 0:02:23.1]} 27... h6 {[%clk 0:01:26.3]} 28.
h3 {[%clk 0:02:23]} 28... g5 {[%clk 0:01:27.5]} 29. Ra1 {[%clk 0:01:56.1]} 29...
a5 {[%clk 0:01:23.7]} 30. Rae1 {[%clk 0:01:46]} 30... Bb4 {[%clk 0:01:23.3]} 31.
Rd1 {[%clk 0:01:43.2]} 31... cxd5 {[%clk 0:01:24.7]} 32. cxd5 {[%clk 0:01:44.1]}
32... Rd7 {[%clk 0:01:26]} 33. Kc4 {[%clk 0:01:42.6]} 33... b5+ {[%clk
0:01:07.3]} 34. Kxb5 {[%clk 0:01:35.1]} 34... Rb8+ {[%clk 0:00:56.2]} 35. Ka4
{[%clk 0:01:20.8]} 35... Bd6 {[%clk 0:00:54.3]} 36. Rd4 {[%clk 0:01:14.3]} 36...
Rdb7 {[%clk 0:00:55.2]} 37. Re3 {[%clk 0:00:58.6]} 37... Rb5 {[%clk 0:00:34.4]}
38. h4 {[%clk 0:00:47.7]} 38... Be5 {[%clk 0:00:26.7]} 39. hxg5+ {[%clk
0:00:41.4]} 39... hxg5 {[%clk 0:00:28.6]} 40. Rc4 {[%clk 0:00:20.2]} 40... Rxd5
{[%clk 0:00:28.8]} 41. Nc7 {[%clk 0:00:20.9]} 41... Rd4 {[%clk 0:00:13.4]} 42.
Rxd4 {[%clk 0:00:17.3]} 42... Bxd4 {[%clk 0:00:15.3]} 43. Rd3 {[%clk 0:00:17.4]}
43... Be5 {[%clk 0:00:15]} 44. Nd5+ {[%clk 0:00:18]} 44... Ke6 {[%clk
0:00:15.6]} 45. b4 {[%clk 0:00:19.4]} 45... axb4 {[%clk 0:00:16.3]} 46. Nxb4
{[%clk 0:00:19.6]} 46... Ra8+ {[%clk 0:00:15.9]} 47. Kb3 {[%clk 0:00:20.9]}
47... g4 {[%clk 0:00:17.1]} 48. fxg4 {[%clk 0:00:21.6]} 48... fxg4 {[%clk
0:00:19]} 49. Nc6 {[%clk 0:00:23.2]} 49... Bf6 {[%clk 0:00:17.7]} 50. Re3+
{[%clk 0:00:23.7]} 50... Kf5 {[%clk 0:00:18.1]} 51. Re1 {[%clk 0:00:24.8]} 51...
g3 {[%clk 0:00:18.4]} 52. Nb4 {[%clk 0:00:25]} 52... Rb8 {[%clk 0:00:18.9]} 53.
Kc4 {[%clk 0:00:25.4]} 53... Kg4 {[%clk 0:00:17.1]} 54. b3 {[%clk 0:00:24.8]}
54... Bg5 {[%clk 0:00:17.9]} 55. Nd5 {[%clk 0:00:26]} 55... g2 {[%clk
0:00:18.7]} 56. Nc3 {[%clk 0:00:24.5]} 56... Rc8+ {[%clk 0:00:19.7]} 57. Kd3
{[%clk 0:00:25.6]} 57... Kf3 {[%clk 0:00:19.7]} 58. Ne4 {[%clk 0:00:21.3]} 58...
Rd8+ {[%clk 0:00:19.5]} 59. Kc4 {[%clk 0:00:22.7]} 59... Be3 {[%clk 0:00:20.6]}
60. Nc3 {[%clk 0:00:19.9]} 60... Rc8+ {[%clk 0:00:21.4]} 61. Kd3 {[%clk
0:00:20.6]} 61... Rd8+ {[%clk 0:00:23]} 62. Kc4 {[%clk 0:00:22.2]} 62... Bd2
{[%clk 0:00:24.4]} 63. Rd1 {[%clk 0:00:21.5]} 63... Rc8+ {[%clk 0:00:25.4]} 64.
Kd3 {[%clk 0:00:19.5]} 64... Bxc3 {[%clk 0:00:26.8]} 65. b4 {[%clk 0:00:19.4]}
65... Bxb4 {[%clk 0:00:27.6]} 66. Rb1 {[%clk 0:00:20.9]} 66... Bd6 {[%clk
0:00:28.4]} 67. Kd4 {[%clk 0:00:22.2]} 67... Bf4 {[%clk 0:00:29.6]} 68. Kd5
{[%clk 0:00:23.8]} 68... Be3 {[%clk 0:00:30.5]} 69. Rd1 {[%clk 0:00:24.8]} 69...
Rc1 {[%clk 0:00:31.9]} 70. Rd3 {[%clk 0:00:23.3]} 70... g1=Q {[%clk 0:00:32.1]}
71. Ke6 {[%clk 0:00:25.2]} 71... Qg6+ {[%clk 0:00:31]} 72. Ke7 {[%clk
0:00:26.8]} 72... Qxd3 {[%clk 0:00:32.6]} 73. Kf8 {[%clk 0:00:28.7]} 73... Rc7
{[%clk 0:00:33.4]} 74. Kg8 {[%clk 0:00:30]} 74... Qd7 {[%clk 0:00:34.7]} 75. Kh8
{[%clk 0:00:31.2]} 75... Qd8# {[%clk 0:00:36.6]} 0-1

[Event "*** Qualifier 3: Titled Tuesday 3|2 Blitz"]
[Site "Chess.com"]
[Date "2017.04.18"]
[Round "10"]
[White "Spartakus1975"]
[Black "Rodalquilar"]
[Result "1/2-1/2"]
[WhiteElo "2584"]
[BlackElo "2554"]
[TimeControl "180+2"]
[EndTime "15:20:24 PDT"]
[Termination "Game drawn - insufficient material"]

1. e4 {[%clk 0:02:56.6]} 1... e5 {[%clk 0:03:00.5]} 2. Nf3 {[%clk 0:02:56.7]}
2... Nc6 {[%clk 0:03:01.9]} 3. Bb5 {[%clk 0:02:58.1]} 3... a6 {[%clk 0:03:02.9]}
4. Bxc6 {[%clk 0:02:59.3]} 4... dxc6 {[%clk 0:03:04.8]} 5. O-O {[%clk
0:02:59.3]} 5... Bg4 {[%clk 0:03:04.8]} 6. h3 {[%clk 0:03:00.1]} 6... h5 {[%clk
0:03:06]} 7. d3 {[%clk 0:03:01]} 7... Qf6 {[%clk 0:03:07.1]} 8. Be3 {[%clk
0:03:01.9]} 8... Bxf3 {[%clk 0:03:08]} 9. Qxf3 {[%clk 0:03:02]} 9... Qxf3 {[%clk
0:03:08.8]} 10. gxf3 {[%clk 0:03:03.5]} 10... Bd6 {[%clk 0:03:06.1]} 11. Nd2
{[%clk 0:03:04.2]} 11... Ne7 {[%clk 0:03:07.5]} 12. Rfb1 {[%clk 0:03:02.2]}
12... f5 {[%clk 0:03:08.2]} 13. Nc4 {[%clk 0:03:00.5]} 13... f4 {[%clk
0:03:09.2]} 14. Bd2 {[%clk 0:03:00.7]} 14... g5 {[%clk 0:02:59.3]} 15. Kf1
{[%clk 0:03:01.6]} 15... Kd7 {[%clk 0:02:25]} 16. Ke2 {[%clk 0:03:00.9]} 16...
Raf8 {[%clk 0:02:26.1]} 17. Rg1 {[%clk 0:02:56.2]} 17... Rhg8 {[%clk 0:02:27]}
18. Rg2 {[%clk 0:02:53.5]} 18... g4 {[%clk 0:02:08.9]} 19. hxg4 {[%clk 0:02:47]}
19... hxg4 {[%clk 0:02:09.4]} 20. Rag1 {[%clk 0:02:41.7]} 20... gxf3+ {[%clk
0:02:08.3]} 21. Kxf3 {[%clk 0:02:42.7]} 21... Rxg2 {[%clk 0:01:09.1]} 22. Rxg2
{[%clk 0:02:42.5]} 22... b5 {[%clk 0:01:11]} 23. Na5 {[%clk 0:02:40.3]} 23...
Rh8 {[%clk 0:01:08.6]} 24. Rg7 {[%clk 0:02:24.4]} 24... Ke6 {[%clk 0:01:08.1]}
25. c4 {[%clk 0:02:13.4]} 25... Kf6 {[%clk 0:01:08.8]} 26. Rg1 {[%clk
0:02:10.1]} 26... Rh3+ {[%clk 0:01:02.8]} 27. Ke2 {[%clk 0:02:08.9]} 27... f3+
{[%clk 0:00:45.2]} 28. Kf1 {[%clk 0:01:49]} 28... Ng6 {[%clk 0:00:25.2]} 29.
Nxc6 {[%clk 0:01:33.1]} 29... Rh2 {[%clk 0:00:22.6]} 30. b4 {[%clk 0:01:18.2]}
30... bxc4 {[%clk 0:00:14.3]} 31. dxc4 {[%clk 0:01:17.8]} 31... Nf4 {[%clk
0:00:12.8]} 32. c5 {[%clk 0:00:35.9]} 32... Nh3 {[%clk 0:00:12.4]} 33. Be3
{[%clk 0:00:26.2]} 33... Nxg1 {[%clk 0:00:10.8]} 34. Kxg1 {[%clk 0:00:25.7]}
34... Rg2+ {[%clk 0:00:11.6]} 35. Kf1 {[%clk 0:00:26.3]} 35... Bf8 {[%clk
0:00:13]} 36. a4 {[%clk 0:00:22.8]} 36... Bh6 {[%clk 0:00:09.3]} 37. Bxh6 {[%clk
0:00:19.6]} 37... Rh2 {[%clk 0:00:10.6]} 38. Ke1 {[%clk 0:00:17.4]} 38... Rxh6
{[%clk 0:00:11.3]} 39. Kd2 {[%clk 0:00:16.1]} 39... Rh1 {[%clk 0:00:11.2]} 40.
Ke3 {[%clk 0:00:17]} 40... Ra1 {[%clk 0:00:11.5]} 41. Kxf3 {[%clk 0:00:15.8]}
41... Rxa4 {[%clk 0:00:12.3]} 42. Kg4 {[%clk 0:00:16.8]} 42... Ra2 {[%clk
0:00:11.7]} 43. f4 {[%clk 0:00:17.1]} 43... exf4 {[%clk 0:00:10.1]} 44. Kxf4
{[%clk 0:00:18.6]} 44... Ke6 {[%clk 0:00:11.2]} 45. Nd4+ {[%clk 0:00:18.9]}
45... Kd7 {[%clk 0:00:10.6]} 46. e5 {[%clk 0:00:14.4]} 46... Rb2 {[%clk
0:00:03.9]} 47. e6+ {[%clk 0:00:15.5]} 47... Ke8 {[%clk 0:00:04.7]} 48. Nc6
{[%clk 0:00:16.3]} 48... Re2 {[%clk 0:00:03.8]} 49. Kf5 {[%clk 0:00:16.2]} 49...
Rf2+ {[%clk 0:00:05.3]} 50. Ke5 {[%clk 0:00:16.1]} 50... Rf1 {[%clk 0:00:06.3]}
51. Kd5 {[%clk 0:00:16.3]} 51... Rd1+ {[%clk 0:00:07.3]} 52. Kc4 {[%clk
0:00:15.2]} 52... Rc1+ {[%clk 0:00:07.7]} 53. Kb3 {[%clk 0:00:13.8]} 53... Re1
{[%clk 0:00:08]} 54. Nd4 {[%clk 0:00:10.9]} 54... Re4 {[%clk 0:00:07.5]} 55. Kc4
{[%clk 0:00:12]} 55... Ke7 {[%clk 0:00:09.1]} 56. Kd5 {[%clk 0:00:13.1]} 56...
Re1 {[%clk 0:00:09.4]} 57. Kc6 {[%clk 0:00:11.6]} 57... Rd1 {[%clk 0:00:10.7]}
58. Nc2 {[%clk 0:00:07.1]} 58... Rd2 {[%clk 0:00:08.6]} 59. Na3 {[%clk
0:00:06.8]} 59... Rb2 {[%clk 0:00:07.5]} 60. b5 {[%clk 0:00:05.7]} 60... a5
{[%clk 0:00:06.3]} 61. Nc4 {[%clk 0:00:06]} 61... Rb4 {[%clk 0:00:06.9]} 62.
Nxa5 {[%clk 0:00:06.8]} 62... Kxe6 {[%clk 0:00:08.6]} 63. Nb7 {[%clk 0:00:07.7]}
63... Ke7 {[%clk 0:00:08.6]} 64. Na5 {[%clk 0:00:08.1]} 64... Rb1 {[%clk
0:00:09.4]} 65. Nc4 {[%clk 0:00:08.2]} 65... Kd8 {[%clk 0:00:10.9]} 66. Ne3
{[%clk 0:00:09]} 66... Rh1 {[%clk 0:00:11.1]} 67. Nd5 {[%clk 0:00:10]} 67... Kc8
{[%clk 0:00:11.8]} 68. Ne7+ {[%clk 0:00:09.8]} 68... Kb8 {[%clk 0:00:12.8]} 69.
Nd5 {[%clk 0:00:10.4]} 69... Rh6+ {[%clk 0:00:13.5]} 70. Kd7 {[%clk 0:00:11.6]}
70... Rh7+ {[%clk 0:00:14.9]} 71. Ne7 {[%clk 0:00:11.4]} 71... Kb7 {[%clk
0:00:15.6]} 72. Kd8 {[%clk 0:00:12.5]} 72... Rh8+ {[%clk 0:00:14.2]} 73. Kd7
{[%clk 0:00:13.4]} 73... Rh7 {[%clk 0:00:15.8]} 74. Ke6 {[%clk 0:00:14.6]} 74...
Rh5 {[%clk 0:00:15.1]} 75. Nd5 {[%clk 0:00:15.2]} 75... c6 {[%clk 0:00:14.8]}
76. bxc6+ {[%clk 0:00:13.3]} 76... Kxc6 {[%clk 0:00:16.7]} 77. Nf6 {[%clk
0:00:14.2]} 77... Rh6 {[%clk 0:00:17]} 78. Ke5 {[%clk 0:00:13.9]} 78... Kxc5
{[%clk 0:00:17.6]} 79. Ne4+ {[%clk 0:00:15.5]} 79... Kc4 {[%clk 0:00:18.4]} 80.
Nf6 {[%clk 0:00:17.1]} 80... Rh1 {[%clk 0:00:19.5]} 81. Ne4 {[%clk 0:00:15.4]}
81... Re1 {[%clk 0:00:20.6]} 82. Kf5 {[%clk 0:00:16.8]} 82... Kd4 {[%clk
0:00:22]} 83. Nf6 {[%clk 0:00:17.9]} 83... Rf1+ {[%clk 0:00:23]} 84. Ke6 {[%clk
0:00:18.9]} 84... Ra1 {[%clk 0:00:23.7]} 85. Kf5 {[%clk 0:00:19.5]} 85... Ra5+
{[%clk 0:00:24.3]} 86. Kf4 {[%clk 0:00:19.5]} 86... Re5 {[%clk 0:00:24.1]} 87.
Ng4 {[%clk 0:00:19.5]} 87... Re8 {[%clk 0:00:25.3]} 88. Kf5 {[%clk 0:00:20.3]}
88... Ra8 {[%clk 0:00:17.3]} 89. Nf6 {[%clk 0:00:20.2]} 89... Ke3 {[%clk
0:00:18.8]} 90. Ke5 {[%clk 0:00:20.7]} 90... Ra6 {[%clk 0:00:18.8]} 91. Nd5+
{[%clk 0:00:21.5]} 91... Kd3 {[%clk 0:00:20.4]} 92. Nb4+ {[%clk 0:00:22.5]}
92... Kc4 {[%clk 0:00:20.6]} 93. Nxa6 {[%clk 0:00:23.3]} 1/2-1/2